[Event "Early-Titled-Tuesday-Blitz-March-19-2024"]
[Site "Chess.com"]
[Date "2024.03.19"]
[Round "7"]
[White "ikhasu"]
[Black "SuperPower2011"]
[Result "0-1"]
[WhiteElo "2503"]
[BlackElo "2779"]
[TimeControl "180+1"]
[EndTime "9:16:36 PDT"]
[Termination "SuperPower2011 won by resignation"]

1. d4 {[%clk 0:03:00.9]} 1... Nf6 {[%clk 0:02:59.7]} 2. Nf3 {[%clk 0:03:01.2]}
2... e6 {[%clk 0:02:59.9]} 3. b3 {[%clk 0:03:01.3]} 3... d5 {[%clk 0:03:00.1]}
4. Bb2 {[%clk 0:03:01.9]} 4... Be7 {[%clk 0:02:58.5]} 5. Nbd2 {[%clk 0:03:02.5]}
5... O-O {[%clk 0:02:59.1]} 6. g3 {[%clk 0:03:03.1]} 6... b6 {[%clk 0:02:59.6]}
7. Bg2 {[%clk 0:03:03.4]} 7... Bb7 {[%clk 0:03:00.2]} 8. O-O {[%clk 0:03:03.4]}
8... Nbd7 {[%clk 0:03:01.1]} 9. c4 {[%clk 0:03:02.8]} 9... c5 {[%clk 0:02:59.1]}
10. e3 {[%clk 0:03:01.3]} 10... Qc7 {[%clk 0:02:53.4]} 11. Rc1 {[%clk
0:03:00.7]} 11... dxc4 {[%clk 0:02:43.7]} 12. Nxc4 {[%clk 0:02:59.8]} 12... Rad8
{[%clk 0:02:42.7]} 13. Qe2 {[%clk 0:02:56.7]} 13... Qb8 {[%clk 0:02:41.8]} 14.
Rfd1 {[%clk 0:02:54.3]} 14... Qa8 {[%clk 0:02:41.7]} 15. Qf1 {[%clk 0:02:53.8]}
15... Bxf3 {[%clk 0:02:40.5]} 16. Bh3 {[%clk 0:02:32.6]} 16... Bxd1 {[%clk
0:02:36.6]} 17. Rxd1 {[%clk 0:02:33]} 17... cxd4 {[%clk 0:02:36.7]} 18. Bxd4
{[%clk 0:02:31.9]} 18... Nc5 {[%clk 0:02:36]} 19. Bg2 {[%clk 0:02:31.8]} 19...
Qc8 {[%clk 0:02:34.2]} 20. Ne5 {[%clk 0:02:31.6]} 20... Nd5 {[%clk 0:02:30.8]}
21. Rc1 {[%clk 0:02:27.6]} 21... Qa6 {[%clk 0:02:17.8]} 22. Qd1 {[%clk
0:02:13.4]} 22... Bf6 {[%clk 0:02:12.7]} 23. Nc6 {[%clk 0:02:06.2]} 23... Bxd4
{[%clk 0:02:04.8]} 24. exd4 {[%clk 0:01:58]} 24... Nd7 {[%clk 0:02:00.1]} 25.
Nxd8 {[%clk 0:01:51.9]} 25... Rxd8 {[%clk 0:02:01]} 26. Qd2 {[%clk 0:01:46.6]}
26... N7f6 {[%clk 0:01:59.8]} 27. g4 {[%clk 0:01:43.2]} 27... Nxg4 {[%clk
0:01:51.9]} 28. b4 {[%clk 0:01:03.1]} 28... Rc8 {[%clk 0:01:44]} 29. b5 {[%clk
0:00:54.1]} 29... Qb7 {[%clk 0:01:43.2]} 30. Re1 {[%clk 0:00:50.9]} 30... Ngf6
{[%clk 0:01:40.9]} 31. h4 {[%clk 0:00:48.8]} 31... Qc7 {[%clk 0:01:40.4]} 32. h5
{[%clk 0:00:48.7]} 32... Qc3 {[%clk 0:01:39.6]} 33. Qg5 {[%clk 0:00:47.4]} 33...
Qxe1+ {[%clk 0:01:39.3]} 0-1

[Event "Early-Titled-Tuesday-Blitz-March-19-2024"]
[Site "Chess.com"]
[Date "2024.03.19"]
[Round "7"]
[White "Fore_Man"]
[Black "MikeWizard"]
[Result "0-1"]
[WhiteElo "2307"]
[BlackElo "2136"]
[TimeControl "180+1"]
[EndTime "9:16:39 PDT"]
[Termination "MikeWizard won by checkmate"]

1. e4 {[%clk 0:03:00.9]} 1... d6 {[%clk 0:02:59.6]} 2. d4 {[%clk 0:02:35.4]}
2... Nf6 {[%clk 0:02:59.2]} 3. Nf3 {[%clk 0:02:35.9]} 3... Nbd7 {[%clk
0:02:58.2]} 4. Nc3 {[%clk 0:02:34.7]} 4... e5 {[%clk 0:02:58]} 5. Bc4 {[%clk
0:02:34.5]} 5... Be7 {[%clk 0:02:58.1]} 6. O-O {[%clk 0:02:27.4]} 6... c6 {[%clk
0:02:58]} 7. Re1 {[%clk 0:02:26.4]} 7... Qc7 {[%clk 0:02:58]} 8. Bb3 {[%clk
0:02:25.4]} 8... h6 {[%clk 0:02:50.2]} 9. Be3 {[%clk 0:02:19.1]} 9... Ng4 {[%clk
0:02:47.6]} 10. Bd2 {[%clk 0:02:18.3]} 10... O-O {[%clk 0:02:40]} 11. h3 {[%clk
0:02:16.3]} 11... Ngf6 {[%clk 0:02:39.8]} 12. Be3 {[%clk 0:02:10.8]} 12... a5
{[%clk 0:02:32.3]} 13. a4 {[%clk 0:02:09.2]} 13... exd4 {[%clk 0:02:29.6]} 14.
Bxd4 {[%clk 0:02:09.1]} 14... Nc5 {[%clk 0:02:26.8]} 15. e5 {[%clk 0:02:01.8]}
15... dxe5 {[%clk 0:02:16]} 16. Bxe5 {[%clk 0:02:00.3]} 16... Qb6 {[%clk
0:02:15.5]} 17. Bc4 {[%clk 0:01:57.8]} 17... Be6 {[%clk 0:02:11.8]} 18. Bxe6
{[%clk 0:01:56.6]} 18... Nxe6 {[%clk 0:02:11.3]} 19. Ne4 {[%clk 0:01:53.4]}
19... Nxe4 {[%clk 0:02:07.2]} 20. Rxe4 {[%clk 0:01:54.3]} 20... Rad8 {[%clk
0:02:04.2]} 21. Qe1 {[%clk 0:01:52.8]} 21... Bd6 {[%clk 0:01:37.4]} 22. Bxd6
{[%clk 0:01:50.7]} 22... Rxd6 {[%clk 0:01:36.8]} 23. b3 {[%clk 0:01:49.2]} 23...
Rfd8 {[%clk 0:01:34]} 24. Re5 {[%clk 0:01:49.4]} 24... Rd5 {[%clk 0:01:31.2]}
25. Rxd5 {[%clk 0:01:48.1]} 25... Rxd5 {[%clk 0:01:30.4]} 26. Rd1 {[%clk
0:01:48.8]} 26... Qd8 {[%clk 0:01:28.8]} 27. Rxd5 {[%clk 0:01:47.7]} 27... Qxd5
{[%clk 0:01:28.3]} 28. Qc3 {[%clk 0:01:47]} 28... Qd1+ {[%clk 0:01:24.8]} 29.
Kh2 {[%clk 0:01:46.8]} 29... Qd6+ {[%clk 0:01:21.7]} 30. g3 {[%clk 0:01:47.1]}
30... Qd5 {[%clk 0:01:19.1]} 31. Qe3 {[%clk 0:01:44]} 31... Qc5 {[%clk 0:01:11]}
32. Qe2 {[%clk 0:01:31.1]} 32... Kf8 {[%clk 0:01:09.5]} 33. Kg2 {[%clk
0:01:29.4]} 33... Qd5 {[%clk 0:01:08.5]} 34. Kf1 {[%clk 0:01:26.7]} 34... Ng5
{[%clk 0:01:02.9]} 35. Nxg5 {[%clk 0:01:26.4]} 35... Qh1# {[%clk 0:01:02]} 0-1

[Event "Early-Titled-Tuesday-Blitz-March-19-2024"]
[Site "Chess.com"]
[Date "2024.03.19"]
[Round "7"]
[White "LeRoidesChampions"]
[Black "Willhaven3"]
[Result "1-0"]
[WhiteElo "2664"]
[BlackElo "2533"]
[TimeControl "180+1"]
[EndTime "9:16:44 PDT"]
[Termination "LeRoidesChampions won by resignation"]

1. e4 {[%clk 0:03:00.9]} 1... Nf6 {[%clk 0:02:59.8]} 2. e5 {[%clk 0:02:59.9]}
2... Nd5 {[%clk 0:02:57.3]} 3. d4 {[%clk 0:03:00.5]} 3... d6 {[%clk 0:02:57.7]}
4. Nf3 {[%clk 0:03:01.1]} 4... g6 {[%clk 0:02:57.6]} 5. Bc4 {[%clk 0:03:00.9]}
5... Nb6 {[%clk 0:02:57.9]} 6. Bb3 {[%clk 0:03:01.5]} 6... Bg7 {[%clk
0:02:58.3]} 7. a4 {[%clk 0:03:01.9]} 7... a5 {[%clk 0:02:57.8]} 8. Qe2 {[%clk
0:02:57.6]} 8... O-O {[%clk 0:02:57.5]} 9. e6 {[%clk 0:02:54.5]} 9... fxe6
{[%clk 0:02:48.8]} 10. Bxe6+ {[%clk 0:02:53.8]} 10... Bxe6 {[%clk 0:02:49.7]}
11. Qxe6+ {[%clk 0:02:54.5]} 11... Kh8 {[%clk 0:02:49.8]} 12. Ng5 {[%clk
0:02:46.9]} 12... Qe8 {[%clk 0:02:46.3]} 13. Qh3 {[%clk 0:02:45.4]} 13... h6
{[%clk 0:02:46]} 14. Ne6 {[%clk 0:02:45.5]} 14... Kh7 {[%clk 0:02:43.2]} 15.
Nxg7 {[%clk 0:02:45.3]} 15... Kxg7 {[%clk 0:02:40.3]} 16. Bxh6+ {[%clk
0:02:45.5]} 16... Kg8 {[%clk 0:02:39.5]} 17. Bxf8 {[%clk 0:02:46]} 17... Qxf8
{[%clk 0:02:40.4]} 18. O-O {[%clk 0:02:45.3]} 18... Nc6 {[%clk 0:02:40]} 19. c3
{[%clk 0:02:43.3]} 19... Qf6 {[%clk 0:02:34.5]} 20. Nd2 {[%clk 0:02:43.2]} 20...
Nd5 {[%clk 0:02:34.5]} 21. Ne4 {[%clk 0:02:43]} 21... Qf4 {[%clk 0:02:31.8]} 22.
Qe6+ {[%clk 0:02:40.8]} 22... Qf7 {[%clk 0:02:30.9]} 23. Qxf7+ {[%clk
0:02:41.2]} 23... Kxf7 {[%clk 0:02:31.3]} 24. Rfe1 {[%clk 0:02:41.8]} 24... Rh8
{[%clk 0:02:27.6]} 25. Ng5+ {[%clk 0:02:33.2]} 25... Kf6 {[%clk 0:02:24.8]} 26.
Nf3 {[%clk 0:02:31.4]} 26... Nf4 {[%clk 0:02:09.1]} 27. Re3 {[%clk 0:02:26.2]}
27... Nd5 {[%clk 0:01:41.4]} 28. Re4 {[%clk 0:02:24.6]} 28... Re8 {[%clk
0:01:12.7]} 29. Rae1 {[%clk 0:02:23.7]} 29... Nb6 {[%clk 0:01:11.9]} 30. Re6+
{[%clk 0:02:23.4]} 30... Kf7 {[%clk 0:01:10.2]} 31. b3 {[%clk 0:02:22.7]} 31...
Nd5 {[%clk 0:01:07.6]} 32. c4 {[%clk 0:02:20.1]} 32... Nf4 {[%clk 0:01:07.7]}
33. R6e4 {[%clk 0:02:20.1]} 33... Nh5 {[%clk 0:01:05.9]} 34. d5 {[%clk
0:02:17.8]} 34... Nb4 {[%clk 0:00:56.3]} 35. Ng5+ {[%clk 0:02:16.4]} 35... Kf8
{[%clk 0:00:46.9]} 36. Ne6+ {[%clk 0:02:15]} 36... Kf7 {[%clk 0:00:45.6]} 37.
Nxc7 {[%clk 0:02:15.9]} 37... Rc8 {[%clk 0:00:41.9]} 38. Rxe7+ {[%clk
0:02:15.5]} 38... Kf6 {[%clk 0:00:42.8]} 39. Ne8+ {[%clk 0:02:14.4]} 39... Kg5
{[%clk 0:00:40]} 40. Nxd6 {[%clk 0:02:14.8]} 1-0

[Event "Early-Titled-Tuesday-Blitz-March-19-2024"]
[Site "Chess.com"]
[Date "2024.03.19"]
[Round "7"]
[White "Jojo_898"]
[Black "margarita_2703"]
[Result "1-0"]
[WhiteElo "2481"]
[BlackElo "2326"]
[TimeControl "180+1"]
[EndTime "9:16:45 PDT"]
[Termination "Jojo_898 won by resignation"]

1. e4 {[%clk 0:03:00.9]} 1... e5 {[%clk 0:02:59.2]} 2. Nf3 {[%clk 0:03:00.9]}
2... Nc6 {[%clk 0:02:58.8]} 3. Bc4 {[%clk 0:03:01.3]} 3... Nf6 {[%clk
0:02:58.8]} 4. d3 {[%clk 0:03:00.1]} 4... h6 {[%clk 0:02:58.2]} 5. O-O {[%clk
0:02:59.9]} 5... g5 {[%clk 0:02:57]} 6. c3 {[%clk 0:02:54.5]} 6... Bg7 {[%clk
0:02:18.5]} 7. b4 {[%clk 0:02:52]} 7... d6 {[%clk 0:02:17.4]} 8. Qb3 {[%clk
0:02:43.8]} 8... O-O {[%clk 0:02:16.3]} 9. Be3 {[%clk 0:02:43]} 9... Ne7 {[%clk
0:02:13.3]} 10. Nbd2 {[%clk 0:02:39.3]} 10... Ng6 {[%clk 0:02:13.3]} 11. d4
{[%clk 0:02:33]} 11... Qe7 {[%clk 0:02:12.6]} 12. Rfe1 {[%clk 0:02:27]} 12... c6
{[%clk 0:02:09.4]} 13. a4 {[%clk 0:02:15.1]} 13... Be6 {[%clk 0:02:07]} 14. Bxe6
{[%clk 0:02:14.2]} 14... Qxe6 {[%clk 0:02:06]} 15. Qxe6 {[%clk 0:02:14.3]} 15...
fxe6 {[%clk 0:02:05.6]} 16. dxe5 {[%clk 0:02:14.5]} 16... Nxe5 {[%clk 0:01:46]}
17. Nxe5 {[%clk 0:02:14.1]} 17... dxe5 {[%clk 0:01:46.9]} 18. Bc5 {[%clk
0:02:13.8]} 18... Rfd8 {[%clk 0:01:42.7]} 19. Nc4 {[%clk 0:02:14.4]} 19... Ne8
{[%clk 0:01:37.7]} 20. a5 {[%clk 0:02:05.9]} 20... Kf7 {[%clk 0:01:24.4]} 21.
Rad1 {[%clk 0:02:04.4]} 21... a6 {[%clk 0:01:02.9]} 22. Bb6 {[%clk 0:02:00.6]}
22... Rxd1 {[%clk 0:01:02.5]} 23. Rxd1 {[%clk 0:02:01.5]} 23... Kf6 {[%clk
0:01:03]} 24. Rd7 {[%clk 0:01:56]} 24... Rb8 {[%clk 0:01:00.9]} 25. f3 {[%clk
0:01:47.9]} 25... Bf8 {[%clk 0:00:56.4]} 26. Bd8+ {[%clk 0:01:44.9]} 26... Kg6
{[%clk 0:00:51.1]} 27. Nxe5+ {[%clk 0:01:44.7]} 27... Kh5 {[%clk 0:00:51.3]} 28.
g4+ {[%clk 0:01:40]} 28... Kh4 {[%clk 0:00:49.9]} 29. Kg2 {[%clk 0:01:40.4]} 1-0

[Event "Early-Titled-Tuesday-Blitz-March-19-2024"]
[Site "Chess.com"]
[Date "2024.03.19"]
[Round "7"]
[White "GlavkonVVS"]
[Black "XDPS"]
[Result "0-1"]
[WhiteElo "2692"]
[BlackElo "2908"]
[TimeControl "180+1"]
[EndTime "9:16:52 PDT"]
[Termination "XDPS won by checkmate"]

1. c4 {[%clk 0:03:00.9]} 1... g6 {[%clk 0:02:56.4]} 2. Nf3 {[%clk 0:03:00.2]}
2... Bg7 {[%clk 0:02:57.3]} 3. d4 {[%clk 0:03:00.1]} 3... d6 {[%clk 0:02:57.5]}
4. Nc3 {[%clk 0:02:59.4]} 4... Nd7 {[%clk 0:02:57.4]} 5. Bg5 {[%clk 0:02:59.5]}
5... h6 {[%clk 0:02:57.3]} 6. Bh4 {[%clk 0:02:59.6]} 6... c5 {[%clk 0:02:57.6]}
7. e3 {[%clk 0:02:59.7]} 7... Qa5 {[%clk 0:02:57.5]} 8. Bd3 {[%clk 0:02:54.5]}
8... Ngf6 {[%clk 0:02:53.3]} 9. O-O {[%clk 0:02:53.8]} 9... O-O {[%clk
0:02:53.8]} 10. h3 {[%clk 0:02:53.4]} 10... a6 {[%clk 0:02:52.1]} 11. Qc2 {[%clk
0:02:49]} 11... Re8 {[%clk 0:02:48.8]} 12. a3 {[%clk 0:02:47.2]} 12... cxd4
{[%clk 0:02:47.5]} 13. exd4 {[%clk 0:02:46.5]} 13... e5 {[%clk 0:02:48]} 14. b4
{[%clk 0:02:45.5]} 14... Qc7 {[%clk 0:02:46.2]} 15. dxe5 {[%clk 0:02:31.2]}
15... dxe5 {[%clk 0:02:46]} 16. Bg3 {[%clk 0:02:24.9]} 16... Nh5 {[%clk
0:02:45.1]} 17. Bh2 {[%clk 0:02:23.3]} 17... Nf4 {[%clk 0:02:45.5]} 18. Rfd1
{[%clk 0:02:10.6]} 18... Nxd3 {[%clk 0:02:43.2]} 19. Qxd3 {[%clk 0:02:09.7]}
19... Nf8 {[%clk 0:02:37]} 20. Nd5 {[%clk 0:02:07.6]} 20... Qc6 {[%clk
0:02:35.5]} 21. Re1 {[%clk 0:01:40.9]} 21... Bf5 {[%clk 0:02:23.6]} 22. Qb3
{[%clk 0:01:32.9]} 22... e4 {[%clk 0:02:22.6]} 23. Nh4 {[%clk 0:01:30.7]} 23...
Bxa1 {[%clk 0:02:19.7]} 24. Rxa1 {[%clk 0:01:30.2]} 24... Rad8 {[%clk
0:02:18.1]} 25. Qb2 {[%clk 0:01:24.1]} 25... Rxd5 {[%clk 0:02:13.6]} 26. cxd5
{[%clk 0:01:20.8]} 26... Qxd5 {[%clk 0:02:14.5]} 27. Rc1 {[%clk 0:01:19.1]}
27... Bd7 {[%clk 0:02:03.9]} 28. Qf6 {[%clk 0:01:04.4]} 28... g5 {[%clk
0:01:48.8]} 29. Qxh6 {[%clk 0:00:59]} 29... gxh4 {[%clk 0:01:49.3]} 30. Qxh4
{[%clk 0:00:58.2]} 30... Ng6 {[%clk 0:01:49.6]} 31. Qf6 {[%clk 0:00:57.1]} 31...
e3 {[%clk 0:01:48.6]} 32. fxe3 {[%clk 0:00:54.8]} 32... Bc6 {[%clk 0:01:48.4]}
33. Qf2 {[%clk 0:00:46.4]} 33... Rxe3 {[%clk 0:01:48.8]} 34. Bg3 {[%clk
0:00:40.6]} 34... Qe4 {[%clk 0:01:45.3]} 35. Re1 {[%clk 0:00:34.3]} 35... Rxe1+
{[%clk 0:01:44.8]} 36. Qxe1 {[%clk 0:00:34.7]} 36... Qxg2# {[%clk 0:01:45.4]}
0-1

[Event "Early-Titled-Tuesday-Blitz-March-19-2024"]
[Site "Chess.com"]
[Date "2024.03.19"]
[Round "7"]
[White "Mikhail_Bryakin"]
[Black "yaguigor"]
[Result "1-0"]
[WhiteElo "2736"]
[BlackElo "2560"]
[TimeControl "180+1"]
[EndTime "9:16:53 PDT"]
[Termination "Mikhail_Bryakin won by resignation"]

1. e4 {[%clk 0:02:54.3]} 1... c5 {[%clk 0:02:59.1]} 2. d4 {[%clk 0:02:53.9]}
2... cxd4 {[%clk 0:02:58.8]} 3. Qxd4 {[%clk 0:02:54.8]} 3... Nc6 {[%clk
0:02:58.2]} 4. Qd3 {[%clk 0:02:55.2]} 4... Nf6 {[%clk 0:02:56.9]} 5. Nc3 {[%clk
0:02:55.4]} 5... g6 {[%clk 0:02:52.8]} 6. Nf3 {[%clk 0:02:55.8]} 6... d6 {[%clk
0:02:52.1]} 7. Be2 {[%clk 0:02:55.6]} 7... Bg7 {[%clk 0:02:51.1]} 8. O-O {[%clk
0:02:56.1]} 8... O-O {[%clk 0:02:49.3]} 9. Nd5 {[%clk 0:02:55.3]} 9... Nxd5
{[%clk 0:02:33.2]} 10. exd5 {[%clk 0:02:56.2]} 10... Bf5 {[%clk 0:02:21.2]} 11.
Qd1 {[%clk 0:02:48.9]} 11... Nb4 {[%clk 0:02:15]} 12. c3 {[%clk 0:02:49.1]}
12... Nc2 {[%clk 0:02:06.2]} 13. g4 {[%clk 0:02:49]} 13... Nxa1 {[%clk
0:01:46.1]} 14. gxf5 {[%clk 0:02:48.3]} 14... Qa5 {[%clk 0:01:43.2]} 15. Bg5
{[%clk 0:02:40.5]} 15... Qxa2 {[%clk 0:01:38.5]} 16. Qxa1 {[%clk 0:02:31]} 16...
Qxd5 {[%clk 0:01:37.4]} 17. Bxe7 {[%clk 0:02:31.7]} 17... Rfe8 {[%clk
0:01:35.5]} 18. f6 {[%clk 0:02:32]} 18... Bxf6 {[%clk 0:01:29.1]} 19. Bxf6
{[%clk 0:02:32.2]} 19... Rxe2 {[%clk 0:01:28.4]} 20. Nd4 {[%clk 0:02:30.2]}
20... Re5 {[%clk 0:00:57.8]} 21. Bxe5 {[%clk 0:02:26.5]} 21... dxe5 {[%clk
0:00:57.2]} 22. Ne2 {[%clk 0:02:27]} 22... Qf3 {[%clk 0:00:55.8]} 23. Ng3 {[%clk
0:02:27.4]} 23... Rd8 {[%clk 0:00:54.1]} 24. Qxa7 {[%clk 0:02:27.4]} 24... h5
{[%clk 0:00:54.3]} 25. Qe3 {[%clk 0:02:27.7]} 25... Qg4 {[%clk 0:00:52.5]} 26.
Qe4 {[%clk 0:02:28.3]} 26... Qg5 {[%clk 0:00:46.1]} 27. f4 {[%clk 0:02:21.8]}
27... exf4 {[%clk 0:00:42.3]} 28. Qxf4 {[%clk 0:02:22.7]} 28... Qxf4 {[%clk
0:00:39.3]} 29. Rxf4 {[%clk 0:02:23.6]} 29... f5 {[%clk 0:00:37.3]} 30. Rd4
{[%clk 0:02:22.3]} 30... Rxd4 {[%clk 0:00:16.7]} 31. cxd4 {[%clk 0:02:23.2]}
31... Kf7 {[%clk 0:00:17.3]} 32. Kf2 {[%clk 0:02:23.3]} 32... Ke6 {[%clk
0:00:16.2]} 33. Ke3 {[%clk 0:02:24]} 33... g5 {[%clk 0:00:16.2]} 34. Nxh5 {[%clk
0:02:23.7]} 34... Kd5 {[%clk 0:00:15.8]} 35. Nf4+ {[%clk 0:02:21.6]} 35... Kc4
{[%clk 0:00:09.2]} 36. Ne6 {[%clk 0:02:22.3]} 36... g4 {[%clk 0:00:08.1]} 37.
Kf4 {[%clk 0:02:22.8]} 1-0

[Event "Early-Titled-Tuesday-Blitz-March-19-2024"]
[Site "Chess.com"]
[Date "2024.03.19"]
[Round "7"]
[White "GnowReopard"]
[Black "axvesik"]
[Result "1/2-1/2"]
[WhiteElo "2782"]
[BlackElo "2573"]
[TimeControl "180+1"]
[EndTime "9:16:54 PDT"]
[Termination "Game drawn by repetition"]

1. c4 {[%clk 0:03:00.9]} 1... Nf6 {[%clk 0:02:57.8]} 2. Nc3 {[%clk 0:03:00.9]}
2... e6 {[%clk 0:02:58.1]} 3. e4 {[%clk 0:03:00.5]} 3... d5 {[%clk 0:02:58.2]}
4. e5 {[%clk 0:03:01]} 4... d4 {[%clk 0:02:57.9]} 5. exf6 {[%clk 0:03:01.4]}
5... dxc3 {[%clk 0:02:57.9]} 6. bxc3 {[%clk 0:03:02.3]} 6... Qxf6 {[%clk
0:02:57.3]} 7. Bd3 {[%clk 0:03:02.9]} 7... Be7 {[%clk 0:02:50.8]} 8. Nf3 {[%clk
0:03:01]} 8... O-O {[%clk 0:02:50.2]} 9. Qc2 {[%clk 0:02:57.2]} 9... h6 {[%clk
0:02:42.9]} 10. Bh7+ {[%clk 0:02:57.1]} 10... Kh8 {[%clk 0:02:42.2]} 11. Be4
{[%clk 0:02:58]} 11... e5 {[%clk 0:02:34.9]} 12. O-O {[%clk 0:02:50]} 12... Nc6
{[%clk 0:02:11.4]} 13. Re1 {[%clk 0:02:46]} 13... Bd6 {[%clk 0:02:05.1]} 14. Rb1
{[%clk 0:02:43.9]} 14... Qe6 {[%clk 0:01:45.2]} 15. Bd5 {[%clk 0:02:36.5]} 15...
Qg4 {[%clk 0:01:41.5]} 16. h3 {[%clk 0:02:34.2]} 16... Qh5 {[%clk 0:01:39.2]}
17. d4 {[%clk 0:02:30.3]} 17... exd4 {[%clk 0:01:35.1]} 18. cxd4 {[%clk
0:02:31.2]} 18... Bxh3 {[%clk 0:01:16.5]} 19. gxh3 {[%clk 0:02:30]} 19... Qxh3
{[%clk 0:01:16.5]} 20. Qe4 {[%clk 0:01:23.9]} 20... Rae8 {[%clk 0:00:56.5]} 21.
Qxe8 {[%clk 0:01:22.8]} 21... Qg4+ {[%clk 0:00:41.8]} 22. Kf1 {[%clk 0:01:18.9]}
22... Qh3+ {[%clk 0:00:40.3]} 23. Kg1 {[%clk 0:01:18]} 23... Qg4+ {[%clk
0:00:40.5]} 24. Kf1 {[%clk 0:01:13.5]} 24... Qh3+ {[%clk 0:00:40.6]} 25. Kg1
{[%clk 0:01:13.7]} 1/2-1/2

[Event "Early-Titled-Tuesday-Blitz-March-19-2024"]
[Site "Chess.com"]
[Date "2024.03.19"]
[Round "7"]
[White "GreenPeach24"]
[Black "AlexOstrovskiy"]
[Result "0-1"]
[WhiteElo "2559"]
[BlackElo "2738"]
[TimeControl "180+1"]
[EndTime "9:16:57 PDT"]
[Termination "AlexOstrovskiy won by checkmate"]

1. e4 {[%clk 0:03:00.9]} 1... d5 {[%clk 0:02:58.6]} 2. exd5 {[%clk 0:03:00.5]}
2... Nf6 {[%clk 0:02:59.1]} 3. Bb5+ {[%clk 0:02:59.1]} 3... Nbd7 {[%clk
0:02:59]} 4. c4 {[%clk 0:02:43.5]} 4... a6 {[%clk 0:02:53.7]} 5. Ba4 {[%clk
0:02:43.4]} 5... b5 {[%clk 0:02:53.9]} 6. cxb5 {[%clk 0:02:42.6]} 6... Nxd5
{[%clk 0:02:53.8]} 7. bxa6 {[%clk 0:02:38.4]} 7... Nb4 {[%clk 0:02:09.8]} 8. Qf3
{[%clk 0:02:20.9]} 8... Bxa6 {[%clk 0:02:05.6]} 9. Bxd7+ {[%clk 0:02:19.9]} 9...
Kxd7 {[%clk 0:02:06.1]} 10. Qg4+ {[%clk 0:02:20]} 10... e6 {[%clk 0:02:05.2]}
11. Nh3 {[%clk 0:01:55.8]} 11... Nc2+ {[%clk 0:01:54.3]} 12. Kd1 {[%clk
0:01:50.9]} 12... Nxa1 {[%clk 0:01:55.2]} 13. Nc3 {[%clk 0:01:45.5]} 13... Kc8
{[%clk 0:01:45.5]} 14. Qf3 {[%clk 0:01:43.3]} 14... Bb7 {[%clk 0:01:36.1]} 15.
Qxf7 {[%clk 0:01:41.5]} 15... Bxg2 {[%clk 0:01:29.8]} 16. Rg1 {[%clk 0:01:08.1]}
16... Bxh3 {[%clk 0:01:26.2]} 17. Rg3 {[%clk 0:01:06.7]} 17... Bf5 {[%clk
0:01:25.1]} 18. d3 {[%clk 0:01:04.1]} 18... Bb4 {[%clk 0:01:17.6]} 19. Rxg7
{[%clk 0:00:53.1]} 19... Qxd3+ {[%clk 0:01:08.7]} 20. Bd2 {[%clk 0:00:51.9]}
20... Qf1+ {[%clk 0:01:03.3]} 21. Be1 {[%clk 0:00:51.9]} 21... Rd8+ {[%clk
0:01:03.3]} 22. Qd7+ {[%clk 0:00:51.1]} 22... Rxd7+ {[%clk 0:01:02.9]} 23. Rxd7
{[%clk 0:00:52]} 23... Kxd7 {[%clk 0:01:02.8]} 24. Nb1 {[%clk 0:00:43.2]} 24...
Qxe1# {[%clk 0:00:58.1]} 0-1

[Event "Early-Titled-Tuesday-Blitz-March-19-2024"]
[Site "Chess.com"]
[Date "2024.03.19"]
[Round "7"]
[White "vasblesk"]
[Black "Likvidator228"]
[Result "1-0"]
[WhiteElo "2785"]
[BlackElo "2585"]
[TimeControl "180+1"]
[EndTime "9:16:59 PDT"]
[Termination "vasblesk won by resignation"]

1. d4 {[%clk 0:03:00.9]} 1... d5 {[%clk 0:02:55.6]} 2. c4 {[%clk 0:03:00.3]}
2... e6 {[%clk 0:02:55.2]} 3. Nf3 {[%clk 0:02:57.5]} 3... c6 {[%clk 0:02:54.8]}
4. g3 {[%clk 0:02:49.5]} 4... dxc4 {[%clk 0:02:54.3]} 5. Bg2 {[%clk 0:02:48.8]}
5... b5 {[%clk 0:02:55]} 6. Ne5 {[%clk 0:02:47]} 6... Bb7 {[%clk 0:02:54.9]} 7.
O-O {[%clk 0:02:46.6]} 7... Nf6 {[%clk 0:02:53.4]} 8. a4 {[%clk 0:02:43.7]} 8...
a6 {[%clk 0:02:53.4]} 9. b3 {[%clk 0:02:42.7]} 9... cxb3 {[%clk 0:02:48.3]} 10.
Qxb3 {[%clk 0:02:43.6]} 10... b4 {[%clk 0:02:32.5]} 11. a5 {[%clk 0:02:26.9]}
11... Nbd7 {[%clk 0:02:21.7]} 12. Nd3 {[%clk 0:02:25.1]} 12... Ra7 {[%clk
0:02:03.4]} 13. Nxb4 {[%clk 0:01:59.4]} 13... c5 {[%clk 0:02:03.4]} 14. Nc6
{[%clk 0:01:54.4]} 14... Bxc6 {[%clk 0:01:58.9]} 15. Bxc6 {[%clk 0:01:55.3]}
15... cxd4 {[%clk 0:01:55.7]} 16. Qb6 {[%clk 0:01:54.6]} 16... Qc7 {[%clk
0:01:41.4]} 17. Bf4 {[%clk 0:01:49.8]} 17... Bd6 {[%clk 0:00:58.8]} 18. Bxd7+
{[%clk 0:01:42.9]} 18... Nxd7 {[%clk 0:00:43.4]} 19. Qxd6 {[%clk 0:01:35.3]}
19... Qxd6 {[%clk 0:00:43.5]} 20. Bxd6 {[%clk 0:01:36.2]} 20... f6 {[%clk
0:00:40.2]} 21. Nd2 {[%clk 0:01:30.3]} 21... e5 {[%clk 0:00:38.3]} 22. f4 {[%clk
0:01:28.1]} 22... Rb7 {[%clk 0:00:32.7]} 23. fxe5 {[%clk 0:01:25.8]} 23... fxe5
{[%clk 0:00:32.6]} 24. Ne4 {[%clk 0:01:26.3]} 24... Rb2 {[%clk 0:00:29.2]} 25.
Rac1 {[%clk 0:01:25.8]} 1-0